[Event "Live Chess"]
[Site "Chess.com"]
[Date "2024.06.02"]
[Round "-"]
[White "Eva3337"]
[Black "LL220284LL"]
[Result "0-1"]
[WhiteElo "1178"]
[BlackElo "2479"]
[TimeControl "300"]
[EndTime "6:33:00 PDT"]
[Termination "LL220284LL won by resignation"]

1. e4 {[%clk 0:04:53.8]} 1... g6 {[%clk 0:04:59]} 2. Nf3 {[%clk 0:04:52.6]} 2...
Bg7 {[%clk 0:04:58.4]} 3. c3 {[%clk 0:04:51.2]} 3... d6 {[%clk 0:04:58]} 4. Bd3
{[%clk 0:04:50.4]} 4... Nd7 {[%clk 0:04:56.4]} 5. Bc2 {[%clk 0:04:49.1]} 5... c5
{[%clk 0:04:55.6]} 6. d4 {[%clk 0:04:45.3]} 6... cxd4 {[%clk 0:04:52.1]} 7. cxd4
{[%clk 0:04:44.1]} 7... e6 {[%clk 0:04:51.2]} 8. Be3 {[%clk 0:04:35.5]} 8... Ne7
{[%clk 0:04:44.5]} 9. Nc3 {[%clk 0:04:33.7]} 9... a6 {[%clk 0:04:40.2]} 10. Qd2
{[%clk 0:04:31.6]} 10... O-O {[%clk 0:04:38.4]} 11. Bh6 {[%clk 0:04:29.8]} 11...
b5 {[%clk 0:04:37]} 12. Bxg7 {[%clk 0:04:28.1]} 12... Kxg7 {[%clk 0:04:36.1]}
13. Qg5 {[%clk 0:04:22.2]} 13... Nc6 {[%clk 0:04:32.8]} 14. Qe3 {[%clk
0:04:12.3]} 14... Bb7 {[%clk 0:04:29.2]} 15. O-O-O {[%clk 0:04:02.1]} 15... Rc8
{[%clk 0:04:23]} 16. a3 {[%clk 0:03:54.3]} 16... b4 {[%clk 0:04:21.2]} 17. axb4
{[%clk 0:03:52.5]} 17... Nxb4 {[%clk 0:04:21.1]} 18. Bb1 {[%clk 0:03:47.7]}
18... Nb6 {[%clk 0:04:17.5]} 19. h4 {[%clk 0:03:42.1]} 19... Nc4 {[%clk
0:04:16.6]} 20. Qe2 {[%clk 0:03:29.1]} 20... Qa5 {[%clk 0:04:14.6]} 21. h5
{[%clk 0:03:00.1]} 21... Na3 {[%clk 0:04:08.6]} 22. b3 {[%clk 0:02:38.6]} 22...
Rxc3+ {[%clk 0:04:04.4]} 23. Kd2 {[%clk 0:02:32.9]} 23... Nxb1+ {[%clk
0:04:02.6]} 0-1

[Event "Live Chess"]
[Site "Chess.com"]
[Date "2024.06.02"]
[Round "-"]
[White "MagnersCarlsberg2870"]
[Black "juniortay"]
[Result "0-1"]
[WhiteElo "1768"]
[BlackElo "2334"]
[TimeControl "300"]
[EndTime "6:33:10 PDT"]
[Termination "juniortay won by resignation"]

1. d4 {[%clk 0:04:57.8]} 1... d5 {[%clk 0:04:58.3]} 2. e3 {[%clk 0:04:56.5]}
2... c5 {[%clk 0:04:57.6]} 3. c3 {[%clk 0:04:55.5]} 3... Nc6 {[%clk 0:04:57.2]}
4. Bd3 {[%clk 0:04:54.5]} 4... Nf6 {[%clk 0:04:55.8]} 5. f4 {[%clk 0:04:53.7]}
5... g6 {[%clk 0:04:54.1]} 6. Nf3 {[%clk 0:04:51.4]} 6... Bf5 {[%clk 0:04:53.3]}
7. Bxf5 {[%clk 0:04:49.5]} 7... gxf5 {[%clk 0:04:53.2]} 8. Qd3 {[%clk
0:04:47.8]} 8... e6 {[%clk 0:04:52.5]} 9. Ne5 {[%clk 0:04:43.7]} 9... Nxe5
{[%clk 0:04:50.6]} 10. fxe5 {[%clk 0:04:41.4]} 10... Ne4 {[%clk 0:04:50.2]} 11.
Qb5+ {[%clk 0:04:39.3]} 11... Qd7 {[%clk 0:04:45.7]} 12. Qxd7+ {[%clk
0:04:38.2]} 12... Kxd7 {[%clk 0:04:45.6]} 13. Nd2 {[%clk 0:04:37.2]} 13... Rg8
{[%clk 0:04:43.7]} 14. g3 {[%clk 0:04:34.7]} 14... h5 {[%clk 0:04:41.9]} 15. Nf3
{[%clk 0:04:31.4]} 15... Be7 {[%clk 0:04:39.7]} 16. Bd2 {[%clk 0:04:23.2]} 16...
c4 {[%clk 0:04:33.8]} 17. b3 {[%clk 0:04:21.5]} 17... b5 {[%clk 0:04:31.6]} 18.
bxc4 {[%clk 0:04:20.4]} 18... bxc4 {[%clk 0:04:30.4]} 19. Rb1 {[%clk 0:04:19.4]}
19... Rab8 {[%clk 0:04:29.5]} 20. Ke2 {[%clk 0:04:17]} 20... Ba3 {[%clk
0:04:24.7]} 21. Rhf1 {[%clk 0:03:24.7]} 21... Bb2 {[%clk 0:04:22]} 0-1

[Event "Live Chess"]
[Site "Chess.com"]
[Date "2024.06.02"]
[Round "-"]
[White "missedJariChance"]
[Black "grillage"]
[Result "0-1"]
[WhiteElo "1386"]
[BlackElo "1865"]
[TimeControl "300"]
[EndTime "6:33:12 PDT"]
[Termination "grillage won by resignation"]

1. b3 {[%clk 0:04:55.5]} 1... d5 {[%clk 0:04:58]} 2. Bb2 {[%clk 0:04:52.5]} 2...
Bg4 {[%clk 0:04:56.7]} 3. Nf3 {[%clk 0:04:44.9]} 3... Bxf3 {[%clk 0:04:54.2]} 4.
exf3 {[%clk 0:04:43.9]} 4... e6 {[%clk 0:04:53.3]} 5. d4 {[%clk 0:04:37.7]} 5...
Nf6 {[%clk 0:04:52.1]} 6. Be2 {[%clk 0:04:35.6]} 6... c5 {[%clk 0:04:45.4]} 7.
Nd2 {[%clk 0:04:28.5]} 7... Nc6 {[%clk 0:04:44.4]} 8. c4 {[%clk 0:04:25.5]} 8...
cxd4 {[%clk 0:04:41.5]} 9. cxd5 {[%clk 0:04:21.3]} 9... Nxd5 {[%clk 0:04:34.7]}
10. Bb5 {[%clk 0:04:17.3]} 10... Bc5 {[%clk 0:04:21.2]} 11. Ne4 {[%clk
0:04:12.4]} 11... Bb6 {[%clk 0:04:16.1]} 12. Bxd4 {[%clk 0:04:07]} 12... Bxd4
{[%clk 0:04:14.6]} 13. Qxd4 {[%clk 0:04:05.5]} 13... Qa5+ {[%clk 0:04:11.8]} 14.
Nd2 {[%clk 0:03:44.1]} 14... Qxb5 {[%clk 0:04:08.6]} 15. a3 {[%clk 0:03:42.3]}
15... Nxd4 {[%clk 0:04:05.2]} 0-1

[Event "Live Chess"]
[Site "Chess.com"]
[Date "2024.06.02"]
[Round "-"]
[White "JohanKjeldahl"]
[Black "nyclone"]
[Result "1-0"]
[WhiteElo "1789"]
[BlackElo "1147"]
[TimeControl "300"]
[EndTime "6:33:20 PDT"]
[Termination "JohanKjeldahl won by resignation"]

1. e4 {[%clk 0:04:56.7]} 1... e6 {[%clk 0:04:58.9]} 2. d4 {[%clk 0:04:53.6]}
2... d5 {[%clk 0:04:54.7]} 3. Nd2 {[%clk 0:04:51.8]} 3... c5 {[%clk 0:04:49]} 4.
Ngf3 {[%clk 0:04:49.7]} 4... Nc6 {[%clk 0:04:47.9]} 5. Bb5 {[%clk 0:04:47.5]}
5... Bd7 {[%clk 0:04:46.1]} 6. exd5 {[%clk 0:04:46.2]} 6... exd5 {[%clk
0:04:44.2]} 7. O-O {[%clk 0:04:44.7]} 7... Nf6 {[%clk 0:04:41.5]} 8. Re1+ {[%clk
0:04:42.2]} 8... Be7 {[%clk 0:04:40.6]} 9. dxc5 {[%clk 0:04:40.6]} 9... O-O
{[%clk 0:04:38.7]} 10. Nb3 {[%clk 0:04:36.8]} 10... a6 {[%clk 0:04:36.6]} 11.
Bxc6 {[%clk 0:04:35.8]} 11... Bxc6 {[%clk 0:04:36.5]} 12. Bg5 {[%clk 0:04:33.1]}
12... a5 {[%clk 0:04:26.2]} 13. Nfd4 {[%clk 0:04:31.2]} 13... a4 {[%clk
0:04:21.5]} 14. Nf5 {[%clk 0:04:23.8]} 14... Re8 {[%clk 0:04:05.1]} 15. Nxe7+
{[%clk 0:04:02.5]} 15... Rxe7 {[%clk 0:04:02.2]} 16. Nd4 {[%clk 0:04:00.2]}
16... Rxe1+ {[%clk 0:03:54.5]} 17. Qxe1 {[%clk 0:03:58.9]} 17... h6 {[%clk
0:03:43.6]} 18. Bh4 {[%clk 0:03:56.3]} 18... g5 {[%clk 0:03:40]} 19. Bg3 {[%clk
0:03:54.7]} 19... Ne4 {[%clk 0:03:37.9]} 20. f3 {[%clk 0:03:51.8]} 20... Nxc5
{[%clk 0:03:28.9]} 21. Qb4 {[%clk 0:03:42.6]} 21... Ne6 {[%clk 0:03:04.6]} 22.
Nf5 {[%clk 0:03:38.3]} 22... Nf4 {[%clk 0:02:35.7]} 23. Nxh6+ {[%clk 0:03:33.1]}
23... Kg7 {[%clk 0:02:28.9]} 24. Nf5+ {[%clk 0:03:31.6]} 24... Kg6 {[%clk
0:02:22.5]} 25. Bxf4 {[%clk 0:03:26.3]} 25... gxf4 {[%clk 0:02:15.4]} 26. Nd4
{[%clk 0:03:23.2]} 26... Qf6 {[%clk 0:01:52.6]} 27. Re1 {[%clk 0:03:20.4]} 27...
Rh8 {[%clk 0:01:37.6]} 28. Qc3 {[%clk 0:03:16.4]} 28... Qh4 {[%clk 0:01:28.8]}
29. Qd3+ {[%clk 0:02:51.4]} 29... Kg7 {[%clk 0:01:12.5]} 30. Nf5+ {[%clk
0:02:48.5]} 30... Kf8 {[%clk 0:01:11.3]} 31. Nxh4 {[%clk 0:02:45.4]} 31... Rxh4
{[%clk 0:01:11.2]} 32. Qf5 {[%clk 0:02:40.2]} 32... Rh6 {[%clk 0:01:07.7]} 33.
Qxf4 {[%clk 0:02:35.9]} 33... Re6 {[%clk 0:01:03]} 34. Rxe6 {[%clk 0:02:33.9]}
1-0

[Event "Live Chess"]
[Site "Chess.com"]
[Date "2024.06.02"]
[Round "-"]
[White "Dashman93"]
[Black "NAZRIZ1977"]
[Result "0-1"]
[WhiteElo "2124"]
[BlackElo "2085"]
[TimeControl "300"]
[EndTime "6:33:27 PDT"]
[Termination "NAZRIZ1977 won by resignation"]

1. e4 {[%clk 0:04:58.7]} 1... c6 {[%clk 0:04:57.6]} 2. Qf3 {[%clk 0:04:57.1]}
2... d5 {[%clk 0:04:55.6]} 3. Nc3 {[%clk 0:04:55]} 3... dxe4 {[%clk 0:04:50.9]}
4. Nxe4 {[%clk 0:04:52.4]} 4... f6 {[%clk 0:04:49.2]} 5. Bc4 {[%clk 0:04:51.3]}
5... e6 {[%clk 0:04:47.2]} 6. Ne2 {[%clk 0:04:49.5]} 6... Ne7 {[%clk 0:04:44.2]}
7. Nf4 {[%clk 0:04:48.7]} 7... Nd5 {[%clk 0:04:42.8]} 8. Qh5+ {[%clk 0:04:45.9]}
8... Kd7 {[%clk 0:04:37.1]} 9. Qf7+ {[%clk 0:04:40.8]} 9... Qe7 {[%clk
0:04:33.1]} 10. Nc5+ {[%clk 0:04:37.2]} 10... Kd6 {[%clk 0:04:21.3]} 11. Ne4+
{[%clk 0:04:19.3]} 11... Kd7 {[%clk 0:03:59.4]} 12. Qxe7+ {[%clk 0:04:02.7]}
12... Bxe7 {[%clk 0:03:55.3]} 13. d4 {[%clk 0:04:01.8]} 13... Na6 {[%clk
0:03:40.3]} 14. Nd3 {[%clk 0:04:00.6]} 14... b6 {[%clk 0:03:32.4]} 15. c3 {[%clk
0:03:59.1]} 15... Nac7 {[%clk 0:03:30.2]} 16. Bd2 {[%clk 0:03:57.1]} 16... a5
{[%clk 0:03:20.3]} 17. O-O {[%clk 0:03:55.8]} 17... Ba6 {[%clk 0:03:19.2]} 18.
Bxa6 {[%clk 0:03:53.7]} 18... Rxa6 {[%clk 0:03:18.4]} 19. c4 {[%clk 0:03:52.9]}
19... Nb4 {[%clk 0:03:15.1]} 20. Nxb4 {[%clk 0:03:49.8]} 20... axb4 {[%clk
0:03:06.5]} 21. c5 {[%clk 0:03:46.9]} 21... Nd5 {[%clk 0:03:02.9]} 22. cxb6
{[%clk 0:03:44.5]} 22... Nxb6 {[%clk 0:02:56]} 23. Rfc1 {[%clk 0:03:43.4]} 23...
Rha8 {[%clk 0:02:53.2]} 24. Nc5+ {[%clk 0:03:39.7]} 24... Bxc5 {[%clk
0:02:51.8]} 25. dxc5 {[%clk 0:03:39.3]} 25... Nd5 {[%clk 0:02:51]} 26. a4 {[%clk
0:03:25.3]} 26... Rxa4 {[%clk 0:02:36.8]} 27. Rxa4 {[%clk 0:03:22.7]} 27... Rxa4
{[%clk 0:02:36.7]} 28. Kf1 {[%clk 0:03:19.9]} 28... Ra2 {[%clk 0:02:33.2]} 29.
Rb1 {[%clk 0:03:19.1]} 29... e5 {[%clk 0:02:20.7]} 30. Ke2 {[%clk 0:03:18.1]}
30... Nc3+ {[%clk 0:02:16.1]} 31. bxc3 {[%clk 0:03:12.4]} 31... bxc3 {[%clk
0:02:16]} 32. Rd1 {[%clk 0:03:09.7]} 32... Rxd2+ {[%clk 0:02:06.8]} 0-1

[Event "Live Chess"]
[Site "Chess.com"]
[Date "2024.06.02"]
[Round "-"]
[White "Mikhail_Golubev"]
[Black "OxonChess"]
[Result "1-0"]
[WhiteElo "2490"]
[BlackElo "1962"]
[TimeControl "300"]
[EndTime "6:33:31 PDT"]
[Termination "Mikhail_Golubev won by checkmate"]

1. e4 {[%clk 0:04:54]} 1... c5 {[%clk 0:04:58.8]} 2. Nf3 {[%clk 0:04:52.4]} 2...
Nc6 {[%clk 0:04:58]} 3. Nc3 {[%clk 0:04:50.3]} 3... g6 {[%clk 0:04:56.5]} 4. d4
{[%clk 0:04:48.9]} 4... cxd4 {[%clk 0:04:54.9]} 5. Nxd4 {[%clk 0:04:48.5]} 5...
Bg7 {[%clk 0:04:54.3]} 6. Be3 {[%clk 0:04:47.5]} 6... Nf6 {[%clk 0:04:52.8]} 7.
Bc4 {[%clk 0:04:43.7]} 7... O-O {[%clk 0:04:50.3]} 8. Bb3 {[%clk 0:04:42.4]}
8... d6 {[%clk 0:04:45]} 9. f3 {[%clk 0:04:40]} 9... Bd7 {[%clk 0:04:41.7]} 10.
h4 {[%clk 0:04:36.5]} 10... h5 {[%clk 0:04:40.2]} 11. Qd2 {[%clk 0:04:22.2]}
11... Rc8 {[%clk 0:04:35.4]} 12. O-O-O {[%clk 0:04:19.6]} 12... Na5 {[%clk
0:04:30.8]} 13. g4 {[%clk 0:04:14.1]} 13... Nc4 {[%clk 0:04:27]} 14. Bxc4 {[%clk
0:04:11.1]} 14... Rxc4 {[%clk 0:04:25.8]} 15. gxh5 {[%clk 0:03:42.4]} 15... Nxh5
{[%clk 0:04:22.7]} 16. Rhg1 {[%clk 0:03:41.3]} 16... Qa5 {[%clk 0:04:07.3]} 17.
Rg5 {[%clk 0:03:37.1]} 17... Rc5 {[%clk 0:03:50.2]} 18. Rxc5 {[%clk 0:02:10.2]}
18... Qxc5 {[%clk 0:03:39.1]} 19. Rg1 {[%clk 0:02:05.2]} 19... Rc8 {[%clk
0:03:28.5]} 20. Nd5 {[%clk 0:01:44.8]} 20... Re8 {[%clk 0:02:56.3]} 21. Nf5
{[%clk 0:01:37.3]} 21... Qb5 {[%clk 0:02:23.7]} 22. Nxg7 {[%clk 0:01:32.5]}
22... Kxg7 {[%clk 0:02:17.6]} 23. Nc7 {[%clk 0:01:28.7]} 23... Qa4 {[%clk
0:02:13.3]} 24. Nxe8+ {[%clk 0:01:24.4]} 24... Bxe8 {[%clk 0:02:12.4]} 25. Qd4+
{[%clk 0:01:22.9]} 25... Qxd4 {[%clk 0:02:09]} 26. Bxd4+ {[%clk 0:01:22.8]}
26... f6 {[%clk 0:02:01.2]} 27. Bxa7 {[%clk 0:01:22.7]} 27... Nf4 {[%clk
0:01:58.9]} 28. Kd2 {[%clk 0:01:19.1]} 28... Bc6 {[%clk 0:01:53]} 29. Be3 {[%clk
0:01:17.4]} 29... Ne6 {[%clk 0:01:50.8]} 30. c4 {[%clk 0:01:15.5]} 30... Kf7
{[%clk 0:01:48.3]} 31. b4 {[%clk 0:01:13.3]} 31... Ng7 {[%clk 0:01:46.4]} 32. b5
{[%clk 0:01:10.9]} 32... Bd7 {[%clk 0:01:44.9]} 33. a4 {[%clk 0:01:09.9]} 33...
Nh5 {[%clk 0:01:43.3]} 34. a5 {[%clk 0:01:07.8]} 34... Bc8 {[%clk 0:01:39.6]}
35. Ra1 {[%clk 0:01:03.2]} 35... Ng7 {[%clk 0:01:35.1]} 36. a6 {[%clk
0:01:01.8]} 36... bxa6 {[%clk 0:01:32.5]} 37. bxa6 {[%clk 0:01:00.8]} 37... Ne6
{[%clk 0:01:31.4]} 38. a7 {[%clk 0:00:56.7]} 38... Nc7 {[%clk 0:01:28.3]} 39.
a8=Q {[%clk 0:00:50.4]} 39... Nxa8 {[%clk 0:01:28.2]} 40. Rxa8 {[%clk
0:00:48.7]} 40... Be6 {[%clk 0:01:27.6]} 41. Kc3 {[%clk 0:00:45.7]} 41... Bd7
{[%clk 0:01:25.6]} 42. Ra7 {[%clk 0:00:43.3]} 42... Bc6 {[%clk 0:01:23.9]} 43.
c5 {[%clk 0:00:41.6]} 43... Ke6 {[%clk 0:01:22.4]} 44. cxd6 {[%clk 0:00:37.9]}
44... exd6 {[%clk 0:01:21.4]} 45. Kd4 {[%clk 0:00:32.1]} 45... Bb5 {[%clk
0:01:19.5]} 46. Bf4 {[%clk 0:00:28.7]} 46... Be2 {[%clk 0:01:16]} 47. Rb7 {[%clk
0:00:25.9]} 47... Bxf3 {[%clk 0:01:11.9]} 48. Rb6 {[%clk 0:00:25.2]} 48... Kf7
{[%clk 0:01:10.4]} 49. Rxd6 {[%clk 0:00:24.5]} 49... Bg4 {[%clk 0:01:09.3]} 50.
e5 {[%clk 0:00:23.1]} 50... fxe5+ {[%clk 0:01:07]} 51. Kxe5 {[%clk 0:00:22.6]}
51... Bf5 {[%clk 0:01:05.9]} 52. Rf6+ {[%clk 0:00:20.6]} 52... Kg7 {[%clk
0:01:04.3]} 53. Rxf5 {[%clk 0:00:19.1]} 53... gxf5 {[%clk 0:01:03.5]} 54. Kxf5
{[%clk 0:00:19]} 54... Kh7 {[%clk 0:01:02.7]} 55. Kg5 {[%clk 0:00:17.9]} 55...
Kg8 {[%clk 0:01:01.9]} 56. h5 {[%clk 0:00:16.7]} 56... Kh7 {[%clk 0:01:01.8]}
57. h6 {[%clk 0:00:15.9]} 57... Kg8 {[%clk 0:01:01.7]} 58. Kg6 {[%clk
0:00:14.7]} 58... Kh8 {[%clk 0:01:00]} 59. Bd6 {[%clk 0:00:13.5]} 59... Kg8
{[%clk 0:00:59]} 60. h7+ {[%clk 0:00:13.3]} 60... Kh8 {[%clk 0:00:56.7]} 61.
Be5# {[%clk 0:00:13.2]} 1-0

[Event "Live Chess"]
[Site "Chess.com"]
[Date "2024.06.02"]
[Round "-"]
[White "Ferrarifan27"]
[Black "booktrunk"]
[Result "1-0"]
[WhiteElo "2141"]
[BlackElo "1500"]
[TimeControl "300"]
[EndTime "6:33:32 PDT"]
[Termination "Ferrarifan27 won by resignation"]

1. e4 {[%clk 0:04:59.1]} 1... b6 {[%clk 0:04:50.8]} 2. d4 {[%clk 0:04:57.2]}
2... Bb7 {[%clk 0:04:48.2]} 3. Nc3 {[%clk 0:04:55.3]} 3... f6 {[%clk 0:04:45.7]}
4. Nf3 {[%clk 0:04:52.7]} 4... h6 {[%clk 0:04:45]} 5. Ne5 {[%clk 0:04:38.5]}
5... h5 {[%clk 0:04:42.1]} 6. Ng6 {[%clk 0:04:36]} 6... Rh7 {[%clk 0:04:39.8]}
7. Be2 {[%clk 0:04:32.7]} 7... Kf7 {[%clk 0:04:38.6]} 8. Bxh5 {[%clk 0:04:29.2]}
8... Ke6 {[%clk 0:04:36.1]} 9. Nf4+ {[%clk 0:04:22.9]} 9... Kd6 {[%clk 0:04:34]}
10. e5+ {[%clk 0:04:09.3]} 10... fxe5 {[%clk 0:04:32.4]} 11. dxe5+ {[%clk
0:04:08.5]} 1-0

[Event "Live Chess"]
[Site "Chess.com"]
[Date "2024.06.02"]
[Round "-"]
[White "CarmelJane"]
[Black "Grace6363"]
[Result "1-0"]
[WhiteElo "1998"]
[BlackElo "1129"]
[TimeControl "300"]
[EndTime "6:33:33 PDT"]
[Termination "CarmelJane won by resignation"]

1. Nf3 {[%clk 0:04:56.2]} 1... c5 {[%clk 0:04:56.9]} 2. b3 {[%clk 0:04:55.2]}
2... Nc6 {[%clk 0:04:54.3]} 3. Bb2 {[%clk 0:04:55.1]} 3... d6 {[%clk 0:04:43.9]}
4. g3 {[%clk 0:04:49.6]} 4... e5 {[%clk 0:04:43.2]} 5. e4 {[%clk 0:04:48.3]}
5... Bg4 {[%clk 0:04:42]} 6. Bg2 {[%clk 0:04:45.8]} 6... Nf6 {[%clk 0:04:40.8]}
7. h3 {[%clk 0:04:44.6]} 7... Bxf3 {[%clk 0:04:39.5]} 8. Bxf3 {[%clk 0:04:44.3]}
8... Nd4 {[%clk 0:04:37.8]} 9. Bxd4 {[%clk 0:04:42.8]} 9... cxd4 {[%clk
0:04:36.4]} 10. d3 {[%clk 0:04:36.2]} 10... Qa5+ {[%clk 0:04:33.7]} 11. Nd2
{[%clk 0:04:35.3]} 11... Rc8 {[%clk 0:04:28.2]} 12. O-O {[%clk 0:04:34.3]} 12...
Be7 {[%clk 0:04:26.1]} 13. Nc4 {[%clk 0:04:33.4]} 13... Qc7 {[%clk 0:04:23.1]}
14. Bg2 {[%clk 0:04:31.8]} 14... b5 {[%clk 0:04:18.7]} 15. Na3 {[%clk
0:04:23.9]} 15... a6 {[%clk 0:04:17.4]} 16. Rc1 {[%clk 0:04:15.6]} 16... O-O
{[%clk 0:04:16]} 17. Nb1 {[%clk 0:04:14.6]} 17... a5 {[%clk 0:04:04.4]} 18. f4
{[%clk 0:04:14]} 18... exf4 {[%clk 0:04:00.7]} 19. gxf4 {[%clk 0:04:13.9]} 19...
Nd7 {[%clk 0:03:55.6]} 20. Nd2 {[%clk 0:04:06.4]} 20... Nc5 {[%clk 0:03:50.3]}
21. Nf3 {[%clk 0:04:04.8]} 21... Qd7 {[%clk 0:03:44.3]} 22. Nxd4 {[%clk
0:04:01.5]} 22... Bh4 {[%clk 0:03:26.1]} 23. Nf5 {[%clk 0:03:53.4]} 23... Be7
{[%clk 0:03:22.8]} 24. Nxe7+ {[%clk 0:03:30.2]} 24... Qxe7 {[%clk 0:03:21.6]}
25. Kh2 {[%clk 0:03:12.6]} 25... Ne6 {[%clk 0:03:19.9]} 26. Qg4 {[%clk
0:03:03.1]} 26... Rce8 {[%clk 0:03:05.7]} 27. Rg1 {[%clk 0:02:54.3]} 27... Nd4
{[%clk 0:03:04.3]} 28. Bf1 {[%clk 0:02:40.1]} 28... g6 {[%clk 0:03:01.2]} 29. c3
{[%clk 0:02:36.3]} 29... f5 {[%clk 0:02:51.2]} 30. Qg3 {[%clk 0:02:08.9]} 30...
Ne6 {[%clk 0:02:44.3]} 31. e5 {[%clk 0:01:36.9]} 31... dxe5 {[%clk 0:02:37.2]}
32. fxe5 {[%clk 0:01:36.8]} 32... Qg7 {[%clk 0:02:34.8]} 33. d4 {[%clk
0:01:34.7]} 33... f4 {[%clk 0:02:31.4]} 34. Qf3 {[%clk 0:01:32.2]} 34... Rf5
{[%clk 0:02:28.2]} 35. Bxb5 {[%clk 0:01:30.5]} 35... Rb8 {[%clk 0:02:20.3]} 36.
Bc4 {[%clk 0:01:29.4]} 36... Re8 {[%clk 0:02:11]} 37. Bxe6+ {[%clk 0:01:25.2]}
37... Rxe6 {[%clk 0:02:09.9]} 38. c4 {[%clk 0:01:21]} 38... g5 {[%clk
0:01:59.8]} 39. Qg4 {[%clk 0:01:16.3]} 39... Qh6 {[%clk 0:01:54.2]} 40. Qxf5
{[%clk 0:01:14.8]} 40... f3 {[%clk 0:01:28.5]} 41. d5 {[%clk 0:01:06.6]} 41...
Rg6 {[%clk 0:01:25.3]} 42. Qxf3 {[%clk 0:01:04.1]} 42... Qh4 {[%clk 0:01:24.2]}
43. Rg4 {[%clk 0:01:01.2]} 43... Qh5 {[%clk 0:01:16.8]} 44. e6 {[%clk
0:00:58.4]} 44... Rg7 {[%clk 0:01:07.1]} 45. d6 {[%clk 0:00:57.5]} 45... Qe8
{[%clk 0:01:02.8]} 46. e7 {[%clk 0:00:54.5]} 46... h5 {[%clk 0:00:58.9]} 47.
Qf8+ {[%clk 0:00:51.8]} 47... Qxf8 {[%clk 0:00:55.2]} 48. exf8=Q+ {[%clk
0:00:51.7]} 48... Kxf8 {[%clk 0:00:54.8]} 49. Rd4 {[%clk 0:00:50.5]} 49... Rd7
{[%clk 0:00:52.7]} 50. c5 {[%clk 0:00:49.4]} 50... g4 {[%clk 0:00:51.2]} 51.
hxg4 {[%clk 0:00:47.7]} 51... hxg4 {[%clk 0:00:50.5]} 52. Kg3 {[%clk 0:00:47.6]}
52... a4 {[%clk 0:00:45.3]} 53. c6 {[%clk 0:00:46.6]} 1-0